Cogmind - Beta 13 @@@ ROGUE MODE // 2024.07.07 @ 20:22:43 Player: APerTAS Result: Destroyed by D-53 Grenadier with Mini Grenade Launcher Performance ------------- Evolutions (0) 0 Regions Visited (2) 400 Robots Destroyed (8) 40 Value Destroyed (250) 250 Prototype IDs (2) 40 Alien Tech Used (0) 0 Bonus (0) 0 TOTAL SCORE: 730 Bonus ------- None Cogmind --------- Core Integrity 0/250 Matter 205/300 Energy 99/100 System Corruption 0% Temperature Cool (0) Movement Core (350) Ox6 Location -10/Mines Parts ------- > --- POWER (1) -------- (None) > --- PROPULSION (2) --- (None) > --- UTILITY (2) ------ Large Storage Unit Signal Interpreter > --- WEAPON (2) ------- (None) > --- INVENTORY (15) --- Light Ion Engine Heat Sink Medium Matter Pod (0) Structural Scanner Visual Processing Unit Sensor Array ECM Suite Medium Laser Bore Cannon Peak State ------------ > --- POWER ------------ Fission Core > --- PROPULSION ------- Compact Wheel > --- UTILITY ---------- Large Storage Unit Signal Interpreter > --- WEAPON ----------- Bore Cannon Grenade Launcher > --- INVENTORY -------- Light Ion Engine Heat Sink Medium Matter Pod Structural Scanner Visual Processing Unit Sensor Array ECM Suite Medium Laser Assault Rifle [Rating: 15] Favorites ----------- Power Ion Engine Engine Ion Engine Power Core Fission Core Propulsion Light Treads Treads Light Treads Wheel Compact Wheel Utility Medium Storage Unit Device Structural Scanner Storage Medium Storage Unit Processor Signal Interpreter Weapon Grenade Launcher Energy Cannon Beam Cannon Ballistic Gun Assault Rifle Ballistic Cannon Bore Cannon Launcher Grenade Launcher Build | -11 -10 -10 ------- Run | Yrd Mat Min Slots Evolved . | . . . Power . | . . . Propulsion . | . . . Utility . | . . . Weapon . | . . . Parts Attached 24 | 6 14 4 Power 3 | 1 1 1 Engine 2 | 1 1 . Core 1 | . . 1 Reactor . | . . . Propulsion 4 | 2 1 1 Treads 3 | 2 1 . Leg . | . . . Wheel 1 | . . 1 Hover . | . . . Flight . | . . . Utility 8 | 1 7 . Device 4 | . 4 . Storage 3 | 1 2 . Processor 1 | . 1 . Hackware . | . . . Protection . | . . . Artifact . | . . . Weapon 9 | 2 5 2 Energy Gun . | . . . Energy Cannon 1 | . 1 . Ballistic Gun 5 | 2 2 1 Ballistic Cannon 1 | . . 1 Launcher 2 | . 2 . Special Weapon . | . . . Impact Weapon . | . . . Slashing Weapon . | . . . Piercing Weapon . | . . . Special Melee Weapon . | . . . Unidentified Prototypes . | . . . Parts Lost 8 | . . 8 Power 2 | . . 2 Propulsion 3 | . . 3 Utility . | . . . Weapon 3 | . . 3 Highest Loss Streak 4 | . . 4 To Critical Strikes . | . . . Average Slot Usage (%) 95 | . 96 79 Engine 13 | . 14 4 Treads 26 | . 28 8 Device 7 | . 8 . Storage 14 | . 14 14 Processor 3 | . 2 14 Energy Cannon 6 | . 7 4 Ballistic Gun 7 | . 7 7 Launcher 12 | . 12 12 Naked Turns . | . . . Heaviest Build 42 | 14 31 42 Greatest Support 40 | 40 40 40 Greatest Overweight (x) 2 | . . 2 Average Overweight (x) . | . . 1 Largest Inventory Capacity 15 | 8 15 15 Average Capacity 9 | 7 9 15 Most Carried 10 | 6 10 10 Average Carried 8 | 3 9 9 Final Capacity 15 | 8 15 15 Final Carried 10 | 6 10 9 Class Distribution -------------------- 100% | Mutant Dominant Class ---------------- Mutant | -10/Materials Mutant | -10/Mines Resources | -11 -10 -10 ----------- Run | Yrd Mat Min Matter Collected 541 | 200 325 16 Remotely . | . . . Salvage Created 246 | . 221 25 Parts 18 | . 18 . Haulers Intercepted 1 | . 1 . Recyclers Shooed . | . . . Parts Field Recycled . | . . . Retrieved Matter . | . . . Parts Self-Destructed . | . . . Prevented . | . . . Kills | -11 -10 -10 ------- Run | Yrd Mat Min Combat Hostiles Destroyed 15 | . 5 10 Guns 2 | . 2 . Cannons 1 | . . 1 AOE 12 | . 3 9 Classes Destroyed 5 | . 4 1 Hauler 1 | . 1 . Operator 1 | . 1 . Watcher 1 | . 1 . Grunt 5 | . 5 . Assembled 10 | . . 10 Best Kill Streak 10 | . 2 10 Combat Bots Only 10 | . 2 10 Max Kills in Single Turn 4 | . 2 4 Gunslinging 1 | . 1 . Exploded 4 | . 1 4 Melee . | . . . Uniques/NPCs Destroyed . | . . . Combat | -11 -10 -10 -------- Run | Yrd Mat Min Hostile Shots Fired 53 | . 20 33 Missed 8 | . 5 3 Damage Taken 1018 | . 272 746 Core 269 | . 20 249 Absorbed by Shields . | . . . Core Remaining (%) 100 | 100 . . Volleys Fired 30 | . 17 13 Largest 2 | . 2 2 Hottest 90 | . 50 90 Shots Fired 50 | . 32 18 Gun 32 | . 25 7 Cannon 4 | . . 4 Launcher 14 | . 7 7 Special . | . . . Kinetic 32 | . 25 7 Thermal 4 | . . 4 Explosive 14 | . 7 7 Electromagnetic . | . . . Robot Hit Streak 9 | . 9 5 Robot Miss Streak 3 | . 3 3 Penetration Max . | . . . Secondary Targets 1 | . 1 . Max Gunslinging Chain 1 | . 1 . Shots Hit Robots 31 | . 21 10 Core Hits 46 | . 18 28 Critical Kills 1 | . 1 . Critical Parts Destroyed . | . . . Critical Strikes 1 | . 1 . Destroy 1 | . 1 . Melee Attacks . | . . . Impact . | . . . Slashing . | . . . Piercing . | . . . Sneak Attacks . | . . . Combat Hostiles . | . . . Follow-up Attacks . | . . . Damage Inflicted 1128 | . 462 666 Guns 256 | . 195 61 Cannons 51 | . . 51 Explosions 821 | . 267 554 Melee . | . . . Ramming . | . . . Kinetic 256 | . 195 61 Thermal 51 | . . 51 Explosive 821 | . 267 554 Electromagnetic . | . . . Impact . | . . . Slashing . | . . . Piercing . | . . . Highest Corruption . | . . . Average Corruption . | . . . Corruption Purged . | . . . Corruption Blocked . | . . . Overload Shots . | . . . Overflow Damage 18 | . . 18 Projectiles . | . . . Explosions 18 | . . 18 Melee . | . . . Knockbacks . | . . . Impact . | . . . Kinetic . | . . . Secondary . | . . . Self-Inflicted Damage 157 | . 85 72 Shots 7 | . 4 3 Rammed . | . . . Targets Rammed . | . . . Kicked . | . . . Crushed . | . . . Highest Temperature 190 | . 8 190 Average Temperature 75 | . 3 113 Received Heat Transfer 191 | . 111 80 Siege Activations . | . . . Robots Corrupted . | . . . Combat Hostiles . | . . . Parts Fried . | . . . Impact Corruptions . | . . . Robots Melted . | . . . Combat Hostiles . | . . . Parts Melted . | . . . Heat Transferred 111 | . . 111 Parts Sabotaged . | . . . Parts Stolen . | . . . Parts Stripped . | . . . Power Chain Reactions . | . . . Alert | -11 -10 -10 ------- Run | Yrd Mat Min Peak Influence 228 | . 228 13 Initial 1 | . . 1 Average 51 | . 60 3 Maximum Alert Level 1 | . 1 . Low Security (%) 89 | 100 87 100 Level 1 10 | . 12 . Level 2 . | . . . Level 3 . | . . . Level 4 . | . . . Level 5 . | . . . High Security . | . . . Max Security . | . . . Squads Dispatched 2 | . 2 . Investigation 1 | . 1 . Extermination . | . . . Reinforcement 1 | . 1 . Assault . | . . . Garrison . | . . . Intercept . | . . . Searches Triggered . | . . . Construction Impeded . | . . . Haulers Reinforced . | . . . Active Scanning Responses . | . . . Cargo Convoy Interrupts . | . . . Stealth | -11 -10 -10 --------- Run | Yrd Mat Min Distress Signals . | . . . Communications Jammed . | . . . Distress Signals . | . . . Times Spotted 23 | . 10 13 Peak Tracking Total 11 | . 2 11 Tactical Retreats 1 | . 1 . Traps | -11 -10 -10 ------- Run | Yrd Mat Min Traps Triggered 1 | . 1 . Indirectly . | . . . Trap Hack Attempts . | . . . Triggered . | . . . Disarmed . | . . . Reprogrammed . | . . . Reused . | . . . Traps Extracted . | . . . Installed . | . . . Triggered . | . . . Machines | -11 -10 -10 ---------- Run | Yrd Mat Min Machines Disabled 2 | . 2 . Max in Single Turn 1 | . 1 . Machines Repaired . | . . . Machines Dismantled . | . . . Machines Sabotaged . | . . . Overloaded Fab Kills . | . . . Hacking | -11 -10 -10 --------- Run | Yrd Mat Min Machines Accessed 7 | . 7 . Terminals 6 | . 6 . Fabricators . | . . . Repair Stations . | . . . Recycling Units 1 | . 1 . Scanalyzers . | . . . Garrison Access . | . . . Total Hacks 18 | . 18 . Successful 10 | . 10 . Failed 8 | . 8 . Catastrophic 1 | . 1 . Database Lockouts . | . . . Manual . | . . . Terminals 15 | . 15 . Fabricators . | . . . Repair Stations . | . . . Recycling Units 3 | . 3 . Scanalyzers . | . . . Garrison Access . | . . . Terminal Hacks 9 | . 9 . Record 2 | . 2 . Robot Analysis 1 | . 1 . Prototype ID Bank 1 | . 1 . Alert Level 1 | . 1 . Reinforcement Status 1 | . 1 . Hauler Manifests 1 | . 1 . Registered Components 1 | . 1 . Zone Layout 1 | . 1 . Fabricator Hacks . | . . . Repair Station Hacks . | . . . Recycling Unit Hacks 1 | . 1 . Retrieve Matter 1 | . 1 . Scanalyzer . | . . . Garrison Access Hacks . | . . . Unauthorized Hacks . | . . . Terminals . | . . . Fabricators . | . . . Repair Stations . | . . . Recycling Units . | . . . Scanalyzers . | . . . Garrison Access . | . . . Data Cores Recovered 1 | . 1 . Used . | . . . Hacking Detections 4 | . 4 . Full Trace Events . | . . . Feedback Events . | . . . Feedback Blocked . | . . . Robot Schematics Acquired . | . . . Robots Built . | . . . Authchips . | . . . Time . | . . . Total Robot Build Rating . | . . . Part Schematics Acquired . | . . . Parts Built . | . . . Authchips . | . . . Time . | . . . Total Part Build Rating . | . . . Parts Repaired . | . . . Time . | . . . Parts Recycled . | . . . Recycled Matter . | . . . Retrieved Matter 75 | . 75 . Retrieved Components . | . . . Parts Scanalyzed . | . . . Part Schematics Acquired . | . . . Parts Damaged . | . . . Bothacking | -11 -10 -10 ------------ Run | Yrd Mat Min Used RIF Installer . | . . . Robots Hacked . | . . . Non-combat . | . . . Combat . | . . . Robot Hacks Applied . | . . . Relay Couplers Released . | . . . Fabnet Peak Effective % . | . . . Robots Rewired . | . . . Allies Hacked . | . . . Hacks Repelled . | . . . Allies | -11 -10 -10 -------- Run | Yrd Mat Min Total Allies . | . . . Largest Group . | . . . Highest-Rated Group . | . . . Highest-Rated Ally . | . . . Total Orders . | . . . Ally Attacks . | . . . Total Damage . | . . . Kills . | . . . Allies Corrupted . | . . . Allies Melted . | . . . Intel | -11 -10 -10 ------- Run | Yrd Mat Min Robot Analysis Total 1 | . 1 . Derelict Logs Recovered . | . . . Drone Launches . | . . . Drone Recoveries . | . . . Exploration | -11 -10 -10 ------------- Run | Yrd Mat Min Turns Passed 1645 | 156 1385 104 Spaces Moved 940 | 91 800 49 Core 6 | 6 . . Treads 901 | 85 800 16 Legs . | . . . Wheels 33 | . . 33 Hover . | . . . Flight . | . . . Fastest Speed 50 | 50 160 115 Average Speed 158 | 152 160 138 Slowest Speed 160 | 160 160 160 Overloaded Moves . | . . . Propulsion Burnouts . | . . . Robots Hopped . | . . . Cave-ins Triggered . | . . . Exploration Rate (%) 39 | 7 96 15 Regions Visited 2 Branch Regions 1 Pre-discovered Areas . | . . . Known Exits Taken 1 | . 1 . Unknown Exits Taken 1 | 1 . . Scrap Searched . | . . . Spaces Dug 7 | . . 7 Terrain Destroyed 71 | . 36 35 Melee . | . . . Projectile . | . . . AOE 71 | . 36 35 Terrain Rammed . | . . . Walls Destroyed . | . . . Machines Disabled . | . . . Actions | -11 -10 -10 --------- Run | Yrd Mat Min Total 1052 | 108 876 68 Wait 8 | . 8 . Move 938 | 90 799 49 Hop . | . . . Pick Up 37 | 12 23 2 Fast Attach . | . . . Attach 13 | 6 4 3 Detach . | . . . Swap 11 | . 10 1 Drop 15 | . 15 . Fire 30 | . 17 13 Melee . | . . . Ram . | . . . Kick . | . . . Crush . | . . . Escape Stasis . | . . . Rewire . | . . . Trap . | . . . Miscellaneous . | . . . Route ------- -11/Scrapyard -10/Materials (discovered 4 exits: *Mat x3 / *Min) -10/Mines History --------- Turn | Location | Event 5 | -11/Scrapyard | Discovered new exit (range 15) 157 | -11/Scrapyard | Entered Materials 305 | -10/Materials | Build established: Mutant 542 | -10/Materials | Discovered new exit (range 6) 1033 | -10/Materials | Discovered new exit (range 16) 1242 | -10/Materials | Discovered new exit (range 13) 1269 | -10/Materials | Identified exit to Materials 1343 | -10/Materials | Discovered new exit (range 13) 1529 | -10/Materials | Identified exit to Mines 1542 | -10/Materials | Entered Mines 1543 | -10/Mines | Assembled infested the area 1548 | -10/Mines | Assisted by a Guerilla fighting off Assembled 1581 | -10/Mines | Core integrity fell below 50% 1603 | -10/Mines | Destroyed 10 combat bots 1610 | -10/Mines | Lost 4 parts (1p2n1w) 1646 | -10/Mines | Core integrity fell below 20% 1646 | -10/Mines | Destroyed by D-53 Grenadier with Mini Grenade Launcher Last Messages --------------- as-96470 destroyed. as-54652 destroyed. Ion Engine destroyed. Beam Cannon destroyed. as-93379 destroyed. as-60212 destroyed. The unstable cave ceiling collapses. Acquired Fission Core. The unstable cave ceiling collapses. Acquired Bore Cannon. Acquired 16 matter. The unstable cave ceiling collapses. Grenade Launcher destroyed. Fission Core destroyed. The unstable cave ceiling collapses. Com. Wheel destroyed. The unstable cave ceiling collapses. Destroyed Shock Absorption System. U-05 Engineer lays Concrete. Assault Rifle destroyed. Map ----- +----------------------------------------------------+ | | | | | | | | | | | | | | | | | | | | | | | ?????????????????????????????????????????? | | ?????????????????????????????????????????? | | ?????????????????????????????????????????? | | ??????????????????????????####???????##??? | | ????????????????????????### ######## ###? | | ????????????????????##### # ## | | ????????????????????# # # | | ????????????????????# # | | ????????????????????# # = # | | ??????????????########### # | | ?????????????## ##??##### ## ## | | ????????????## #?####?###### # | | ????????????# ### ###???## # | | ????????????# # ###??# ## | | ????????????# @ #### | | ????????????# ## ## | | ????????????# ### " | | ????????????## ##?## | | ?????????????### ##???### | | ??????????????## dd# ??????##### #### | | ??????????????# ##?????????########??? | | ??????????????# ?????????????????????? | | ??????????????? ?????????????????????? | | ?????????????? ????????????????????? | | ?????????????? #????????????????????? | | ?????????????? ????????????????????? | | ?????????????? #????????????????????? | | ?????????????## ????????????????????? | | ??????????????## ????????????????????? | | ????????????????##u#?????????????????????? | | ?????????????????????????????????????????? | | ?????????????????????????????????????????? | | ?????????????????????????????????????????? | | ?????????????????????????????????????????? | | ?????????????????????????????????????????? | | ?????????????????????????????????????????? | | ?????????????????????????????????????????? | | ?????????????????????????????????????????? | | ?????????????????????????????????????????? | +----------------------------------------------------+ Best States ------------- Heat Dissipation 35 Energy Generation 18 Energy Capacity 310 Matter Stores 300 Matter Capacity 300 Sight Range 16 Terrain Scan Density 10 ECM Strength 1 Evasion (%) 40 Recoil Reduction 2 Item Schematics ----------------- None Robot Schematics ------------------ None Fabricated ------------ Nothing Alien Tech Used ----------------- None Achievements -------------- Loot Pinata Challenges ------------ None Game ------ Seed SubatomicHeartDatajack Manual? 0 Play Time 00:22:51 Cumulative 3.0 hours Start 2024.07.07 @ 20:02:16 End 2024.07.07 @ 20:22:43 Sessions 1 Manual Loads 0 Difficulty Rogue Special Mode None Game No. 6 Rogue 6 Adventurer 0 Explorer 0 Win Type - Total 0 Types 0/0/0/0/0/0/0/0/0 Lore% 1 Gallery% 5 Achievement% 4 Wizard Run 0 Options --------- Layout 1 ASCII 0 Keyboard 0 Movement Arrows Keybinds 0 Fullscreen 1 Font 28/Dina Map View 50x43 Zoom Use 0% Tactical HUD 0 Map Filters NONE Filters NONE Steam 1 RUN: ed677188-8b6e-4542-8af3-62dd9fdd875b